fUSD/lending_fUSD_20251122
["ID","MTS","AMOUNT","RATE_DAILY","PERIOD"]
[394621441,1763793041391,-621.41466614,0.00016596,2]
[394621442,1763793041401,-500.0,0.00016596,2]
[394621443,1763793041411,-500.0,0.00016596,2]
[394621444,1763793041422,-677.01,0.00016596,2]
[394621445,1763793041433,-500.0,0.00016596,2]
[394621446,1763793041443,-500.0,0.00016596,2]
[394621447,1763793041454,-500.0,0.00016596,2]
[394621448,1763793041463,-415.2862096,0.00016596,2]
[394621449,1763793041474,-500.0,0.00016596,2]
[394621450,1763793041484,-500.0,0.00016596,2]
[394621451,1763793041493,-988.66,0.00016596,2]
[394621452,1763793041503,-500.0,0.00016596,2]
[394621453,1763793041516,-500.0,0.00016596,2]
[394621454,1763793041526,-521.7809429,0.00016596,2]
[394621455,1763793041536,-152.482923,0.00016596,2]
[394621456,1763793041545,-500.0,0.00016596,2]
[394621457,1763793041555,-500.0,0.00016596,2]
[394621458,1763793041565,-1365.61,0.00016596,2]
[394621459,1763793041574,-333.92574308,0.00016596,2]
[394621460,1763793041584,-500.0,0.00016596,2]
[394621461,1763793041594,-510.01979354,0.00016596,2]
[394621462,1763793041603,-500.0,0.00016596,2]
[394621463,1763793041613,-209.54733861,0.00016596,2]
[394621464,1763793043061,-293.0707646,0.0001554,2]
[394621465,1763793043074,-206.9292354,0.0001554,2]
[394621466,1763793043084,-324.58652147,0.00016495,2]
[394621467,1763793043095,-3547.5,0.00016495,2]
[394621468,1763793043112,-9541.55337853,0.00016495,2]
[394621469,1763793043123,-448.49099703,0.00016594,2]
[394621470,1763793043133,-500.0,0.00016594,2]
[394621471,1763793043146,-500.0,0.00016595,2]
[394621472,1763793043156,-500.0,0.00016595,2]
[394621473,1763793043166,-290.45266139,0.00016596,2]
[394621474,1763793043176,-500.0,0.00016596,2]
[394621475,1763793043186,-500.0,0.00016596,2]
[394621476,1763793043196,-500.0,0.00016596,2]
[394621477,1763793043206,-500.0,0.00016596,2]
[394621478,1763793043216,-1648.67,0.00016596,2]
[394621479,1763793043226,-500.0,0.00016596,2]
[394621480,1763793043240,-507.28686113,0.00016596,2]
[394621481,1763793043250,-500.0,0.00016596,2]
[394621482,1763793043260,-849.28,0.00016596,2]
[394621483,1763793043270,-500.0,0.00016596,2]
[394621484,1763793043280,-500.0,0.00016596,2]
[394621485,1763793043290,-688.55,0.00016596,2]
[394621486,1763793043301,-500.0,0.00016596,2]
[394621487,1763793043311,-797.31,0.00016596,2]
[394621488,1763793043322,-500.0,0.00016596,2]
[394621489,1763793043332,-500.0,0.00016596,2]
[394621490,1763793043342,-500.0,0.00016596,2]
[394621491,1763793043355,-500.0,0.00016596,2]
[394621492,1763793043677,-500.0,0.00016596,2]
[394621493,1763793043687,-500.0,0.00016596,2]
[394621494,1763793043696,-500.0,0.00016596,2]
[394621495,1763793043706,-500.0,0.00016596,2]
[394621496,1763793043715,-500.0,0.00016596,2]
[394621497,1763793043729,-500.0,0.00016596,2]
[394621498,1763793043739,-500.0,0.00016596,2]
[394621499,1763793043748,-500.0,0.00016596,2]
[394621500,1763793043758,-525.72256879,0.00016596,2]
[394621501,1763793043767,-642.88139233,0.00016596,2]
[394621502,1763793043777,-495.36013743,0.00016596,2]
[394621503,1763793043788,-500.0,0.00016596,2]
[394621504,1763793043797,-500.0,0.00016596,2]
[394621505,1763793043807,-380.78177035,0.00016596,2]
[394621506,1763793043816,-500.0,0.00016596,2]
[394621507,1763793043826,-500.0,0.00016596,2]
[394621508,1763793043835,-500.0,0.00016596,2]
[394621509,1763793043845,-500.0,0.00016596,2]
[394621510,1763793043855,-500.0,0.00016596,2]
[394621511,1763793043864,-500.0,0.00016596,2]
[394621512,1763793043874,-500.0,0.00016596,2]
[394621513,1763793043884,-993.04,0.00016596,2]
[394621514,1763793043895,-500.0,0.00016596,2]
[394621515,1763793043905,-151.0,0.00016596,2]
[394621516,1763793043919,-704.58,0.00016596,2]
[394621517,1763793043928,-500.0,0.00016596,2]
[394621518,1763793043938,-500.0,0.00016596,2]
[394621519,1763793043947,-500.0,0.00016596,2]
[394621520,1763793043956,-537.76860253,0.00016596,2]
[394621521,1763793043965,-500.0,0.00016596,2]
[394621522,1763793043975,-902.8,0.00016596,2]
[394621523,1763793043984,-500.0,0.00016596,2]
[394621524,1763793043994,-500.0,0.00016596,2]
[394621525,1763793044003,-500.0,0.00016596,2]
[394621526,1763793044013,-500.0,0.00016596,2]
[394621527,1763793044022,-500.0,0.00016596,2]
[394621528,1763793044031,-500.0,0.00016596,2]
[394621529,1763793044042,-500.0,0.00016596,2]
[394621530,1763793044052,-500.0,0.00016596,2]
[394621531,1763793044063,-1108.64,0.00016596,2]
[394621532,1763793044073,-500.0,0.00016596,2]
[394621533,1763793044083,-500.0,0.00016596,2]
[394621534,1763793044093,-500.0,0.00016596,2]
[394621535,1763793044103,-500.0,0.00016596,2]
[394621536,1763793044116,-500.0,0.00016596,2]
[394621537,1763793044126,-2233.83,0.00016596,2]
[394621538,1763793044139,-514.47670145,0.00016596,2]
[394621539,1763793044149,-500.0,0.00016596,2]
[394621540,1763793044159,-500.0,0.00016596,2]
[394621541,1763793044168,-500.0,0.00016596,2]
[394621542,1763793044179,-390.45071494,0.00016596,2]
[394621543,1763793044189,-529.07468476,0.00016596,2]
[394621544,1763793044198,-856.27,0.00016596,2]
[394621545,1763793044209,-1224.59,0.00016596,2]
[394621546,1763793044219,-500.0,0.00016596,2]
[394621547,1763793044229,-1187.01,0.00016596,2]
[394621548,1763793044239,-508.73898539,0.00016596,2]
[394621549,1763793044248,-500.0,0.00016596,2]
[394621550,1763793044258,-500.0,0.00016596,2]
[394621551,1763793044267,-500.0,0.00016596,2]
[394621552,1763793044276,-500.0,0.00016596,2]
[394621553,1763793044286,-500.0,0.00016596,2]
[394621554,1763793044295,-500.0,0.00016596,2]
[394621555,1763793044304,-500.0,0.00016596,2]
[394621556,1763793044315,-500.0,0.00016596,2]
[394621557,1763793044327,-544.52053091,0.00016596,2]
[394621558,1763793044337,-500.0,0.00016596,2]
[394621559,1763793044351,-515.6538873,0.00016596,2]
[394621560,1763793044360,-505.41047958,0.00016596,2]
[394621561,1763793044369,-500.0,0.00016596,2]
[394621562,1763793044379,-510.15327625,0.00016596,2]
[394621563,1763793044387,-500.0,0.00016596,2]
[394621564,1763793044398,-500.0,0.00016596,2]
[394621565,1763793044407,-500.0,0.00016596,2]
[394621566,1763793044416,-1002.72,0.00016596,2]
[394621567,1763793044425,-504.57749486,0.00016596,2]
[394621568,1763793044434,-824.54,0.00016596,2]
[394621569,1763793044443,-500.0,0.00016596,2]
[394621570,1763793044453,-525.49293585,0.00016596,2]
[394621571,1763793044462,-550.81777738,0.00016596,2]
[394621572,1763793044471,-511.03121271,0.00016596,2]
[394621573,1763793044481,-506.73282861,0.00016596,2]
[394621574,1763793044490,-856.95,0.00016596,2]
[394621575,1763793044499,-500.0,0.00016596,2]
[394621576,1763793044508,-290.06156294,0.00016596,2]
[394621577,1763793044518,-500.0,0.00016596,2]
[394621578,1763793044527,-500.0,0.00016596,2]
[394621579,1763793044537,-500.0,0.00016596,2]
[394621580,1763793044547,-731.96,0.00016596,2]
[394621581,1763793044557,-500.0,0.00016596,2]
[394621582,1763793044567,-500.0,0.00016596,2]
[394621583,1763793044578,-636.40216459,0.00016596,2]
[394621584,1763793044587,-500.0,0.00016596,2]
[394621585,1763793044597,-377.52883737,0.00016596,2]
[394621586,1763793044606,-176.7805254,0.00016596,2]
[394621587,1763793044616,-500.0,0.00016596,2]
[394621588,1763793044626,-509.70801857,0.00016596,2]
[394621589,1763793044636,-500.0,0.00016596,2]
[394621590,1763793044646,-500.0,0.00016596,2]
[394621591,1763793044655,-500.0,0.00016596,2]
[394621592,1763793044665,-731.43,0.00016596,2]
[394621593,1763793044675,-500.0,0.00016596,2]
[394621594,1763793044684,-500.0,0.00016596,2]
[394621595,1763793044696,-1476.97,0.00016596,2]
[394621596,1763793044715,-114.58838564,0.00016596,2]
[394621597,1763793044738,-385.41161436,0.00016596,2]
[394621598,1763793044748,-500.0,0.00016596,2]
[394621599,1763793044758,-166.6747621,0.00016596,2]
[394621600,1763793044770,-333.3252379,0.00016596,2]
[394621601,1763793044780,-610.37164179,0.00016596,2]
[394621602,1763793044790,-325.30689549,0.00016596,2]
[394621603,1763793044802,-174.69310451,0.00016596,2]
[394621604,1763793044813,-500.0,0.00016596,2]
[394621605,1763793044823,-500.0,0.00016596,2]
[394621606,1763793044834,-196.92168843,0.00016596,2]
[394621607,1763793044844,-500.0,0.00016596,2]
[394621608,1763793044854,-612.73099279,0.00016596,2]
[394621609,1763793044871,-100.85900721,0.00016596,2]
[394621610,1763793044881,-500.0,0.00016596,2]
[394621611,1763793044891,-500.0,0.00016596,2]
[394621612,1763793044902,-500.0,0.00016596,2]
[394621613,1763793044911,-1507.81,0.00016596,2]
[394621614,1763793044922,-922.97,0.00016596,2]
[394621615,1763793044932,-885.64,0.00016596,2]
[394621616,1763793044941,-500.0,0.00016596,2]
[394621617,1763793044952,-910.39,0.00016596,2]
[394621618,1763793044961,-500.0,0.00016596,2]
[394621619,1763793044971,-500.0,0.00016596,2]
[394621620,1763793044980,-500.0,0.00016596,2]
[394621621,1763793044991,-500.0,0.00016596,2]
[394621622,1763793045001,-500.0,0.00016596,2]
[394621623,1763793045011,-756.77,0.00016596,2]
[394621624,1763793045021,-500.0,0.00016596,2]
[394621625,1763793045031,-500.0,0.00016596,2]
[394621626,1763793045040,-500.0,0.00016596,2]
[394621627,1763793045050,-500.0,0.00016596,2]
[394621628,1763793045060,-500.0,0.00016596,2]
[394621629,1763793045070,-973.89,0.00016596,2]
[394621630,1763793045079,-500.0,0.00016596,2]
[394621631,1763793045088,-456.69714148,0.00016596,2]
[394621634,1763793046545,-615.83,0.00016595,2]
[394621635,1763793046554,-578.64,0.00016595,2]
[394621636,1763793046563,-61.52075225,0.00016596,2]
[394621637,1763793046573,-500.0,0.00016596,2]
[394621638,1763793046582,-500.0,0.00016596,2]
[394621639,1763793046591,-560.06042305,0.00016596,2]
[394621640,1763793046600,-500.0,0.00016596,2]
[394621641,1763793046610,-500.0,0.00016596,2]
[394621642,1763793046619,-500.0,0.00016596,2]
[394621643,1763793046629,-500.0,0.00016596,2]
[394621644,1763793046640,-500.0,0.00016596,2]
[394621645,1763793046651,-500.0,0.00016596,2]
[394621646,1763793046660,-606.65,0.00016596,2]
[394621647,1763793046669,-1538.9,0.00016596,2]
[394621648,1763793046678,-608.56,0.00016596,2]
[394621649,1763793046687,-500.0,0.00016596,2]
[394621650,1763793046697,-500.0,0.00016596,2]
[394621651,1763793046706,-500.0,0.00016596,2]
[394621652,1763793046715,-517.12713343,0.00016596,2]
[394621653,1763793046724,-500.0,0.00016596,2]
[394621654,1763793046733,-423.31374359,0.00016596,2]
[394621655,1763793046742,-500.0,0.00016596,2]
[394621656,1763793046752,-663.79,0.00016596,2]
[394621657,1763793046761,-500.0,0.00016596,2]
[394621658,1763793046771,-1754.23,0.00016596,2]
[394621659,1763793046780,-809.19,0.00016596,2]
[394621660,1763793046789,-424.21499942,0.00016596,2]
[394621661,1763793046799,-500.0,0.00016596,2]
[394621662,1763793046808,-500.0,0.00016596,2]
[394621663,1763793046817,-500.0,0.00016596,2]
[394621664,1763793046826,-500.0,0.00016596,2]
[394621665,1763793046835,-500.0,0.00016596,2]
[394621666,1763793046844,-642.49,0.00016596,2]
[394621667,1763793046853,-427.51962027,0.00016596,2]
[394621668,1763793046862,-433.44233531,0.00016596,2]
[394621669,1763793046871,-39.83989176,0.00016596,2]
[394621670,1763793046882,-455.83943095,0.00016596,2]
[394621671,1763793046898,-4.32067729,0.00016596,2]
[394621672,1763793046907,-500.0,0.00016596,2]
[394621673,1763793046916,-500.0,0.00016596,2]
[394621674,1763793046925,-135.53424525,0.00016596,2]
[394621675,1763793047173,-412.80510268,0.00016596,2]
[394621676,1763793047182,-134.45075542,0.00016596,2]
[394621677,1763793047314,-329.48271985,0.00016596,2]
[394621678,1763793047332,-36.06652473,0.00016596,2]
[394621679,1763793047343,-500.0,0.00016596,2]
[394621680,1763793047356,-606.96106905,0.00016596,2]
[394621681,1763793047364,-500.0,0.00016596,2]
[394621682,1763793047374,-500.0,0.00016596,2]
[394621683,1763793047383,-500.0,0.00016596,2]
[394621684,1763793047392,-406.41069065,0.00016596,2]
[394621685,1763793047404,-500.0,0.00016596,2]
[394621686,1763793047414,-500.0,0.00016596,2]
[394621687,1763793047426,-145.47982982,0.00016596,2]
[394621689,1763793207484,772.08,0.00019178,30]
[394621690,1763793480453,500.0,0.00017499,14]
[394621691,1763793480927,500.0,0.00017499,15]
[394621692,1763793481167,500.0,0.00017617,16]
[394621693,1763793481466,500.0,0.00017691,17]
[394621694,1763793481652,500.0,0.00017891,18]
[394621695,1763793481885,500.0,0.00017892,19]
[394621696,1763793482123,525.28407919,0.00017965,20]
[394621697,1763793823106,473.04,0.00015,2]
[394621698,1763793897529,166.66,0.00014856,2]
[394621699,1763794028930,5000.0,0.00022,30]
[394621700,1763794231859,-154.0204295,0.00015169,2]
[394621701,1763794231868,-166.66,0.00015169,2]
[394621702,1763794231878,-2085.28,0.00015426,2]
[394621703,1763794231889,-166.66,0.00015482,2]
[394621704,1763794231898,-300.0,0.00015583,2]
[394621705,1763794231908,-159.0,0.00015583,2]
[394621706,1763794231917,-808.04330921,0.00015583,2]
[394621707,1763794232009,-391.95669079,0.00015583,2]
[394621708,1763794232018,-150.0,0.00015584,2]
[394621709,1763794232027,-150.0,0.00015584,2]
[394621710,1763794232040,-150.0,0.00015584,2]
[394621711,1763794232050,-150.0,0.00015584,2]
[394621712,1763794232059,-150.0,0.00015584,2]
[394621713,1763794232069,-150.0,0.00015584,2]
[394621714,1763794232078,-153.23992756,0.00015584,2]
[394621715,1763794232088,-150.0,0.00015584,2]
[394621716,1763794232098,-150.0,0.00015584,2]
[394621717,1763794232107,-150.0,0.00015584,2]
[394621718,1763794232117,-150.0,0.00015584,2]
[394621719,1763794232127,-197.62328929,0.00015588,2]
[394621720,1763794232136,-250.0,0.00015669,2]
[394621721,1763794232145,-200.0,0.00015688,2]
[394621722,1763794232155,-166.66,0.00015795,2]
[394621723,1763794232164,-111.05343712,0.00015885,2]
[394621724,1763794232176,-467.15580596,0.00015885,2]
[394621725,1763794232185,-200.05763711,0.000159,2]
[394621726,1763794232196,-145.24876844,0.000159,2]
[394621727,1763794232206,-200.0,0.00015909,2]
[394621728,1763794232215,-345.30640555,0.00015939,2]
[394621729,1763794232225,-197.62328928,0.00015991,2]
[394621730,1763794232234,-166.66,0.00016107,2]
[394621731,1763794232244,-197.62328928,0.00016394,2]
[394621732,1763794232253,-3017.38053017,0.00016394,2]
[394621733,1763794232262,-345.30640555,0.00016394,2]
[394621734,1763794232271,-159.66062582,0.00016395,2]
[394621735,1763794232280,-1000.0,0.00016395,2]
[394621736,1763794232289,-1049.02203024,0.00016395,2]
[394621737,1763794232316,-525.74328535,0.00016395,2]
[394621738,1763794232327,-287.66568441,0.00016395,2]
[394621739,1763794232336,-166.66,0.0001642,2]
[394621740,1763794232346,-164.61111,0.0001643,2]
[394621741,1763794232355,-150.0,0.00016449,2]
[394621742,1763794232364,-150.0,0.00016449,2]
[394621743,1763794232374,-150.0,0.00016449,2]
[394621744,1763794232383,-268.77306767,0.00016463,2]
[394621745,1763794232396,-268.20493233,0.00016463,2]
[394621746,1763794232405,-159.0590905,0.00016463,2]
[394621747,1763794232415,-500.0,0.00016463,2]
[394621748,1763794232428,-209.79454154,0.00016491,2]
[394621749,1763794232438,-209.04983651,0.00016493,2]
[394621750,1763794232448,-500.0,0.00016493,2]
[394621751,1763794232458,-500.0,0.00016493,2]
[394621752,1763794232467,-596.74896784,0.00016493,2]
[394621753,1763794232770,-500.0,0.00016493,2]
[394621754,1763794232779,-500.0,0.00016493,2]
[394621755,1763794232789,-500.0,0.00016493,2]
[394621756,1763794232798,-500.0,0.00016493,2]
[394621757,1763794232807,-500.0,0.00016493,2]
[394621758,1763794232817,-500.0,0.00016493,2]
[394621759,1763794232826,-518.06539362,0.00016493,2]
[394621760,1763794232835,-500.0,0.00016493,2]
[394621761,1763794232844,-500.0,0.00016493,2]
[394621762,1763794232853,-340.38466045,0.00016493,2]
[394621779,1763794237810,-159.61533955,0.00016493,2]
[394621780,1763794237819,-500.0,0.00016493,2]
[394621781,1763794237829,-500.0,0.00016493,2]
[394621782,1763794237839,-500.0,0.00016493,2]
[394621783,1763794237848,-500.0,0.00016493,2]
[394621784,1763794237857,-500.0,0.00016493,2]
[394621785,1763794237869,-789.18466045,0.00016493,2]
[394621786,1763794238026,-195.55533955,0.00016493,2]
[394621787,1763794238036,-500.0,0.00016493,2]
[394621788,1763794238045,-500.0,0.00016493,2]
[394621789,1763794238055,-500.0,0.00016493,2]
[394621790,1763794238064,-500.0,0.00016493,2]
[394621791,1763794238083,-500.0,0.00016493,2]
[394621792,1763794238104,-505.02890461,0.00016494,2]
[394621793,1763794238118,-500.0,0.00016494,2]
[394621794,1763794238128,-500.0,0.00016494,2]
[394621795,1763794238138,-500.0,0.00016494,2]
[394621796,1763794238148,-500.0,0.00016494,2]
[394621797,1763794238158,-607.64866447,0.00016494,2]
[394621798,1763794238167,-504.07705101,0.00016494,2]
[394621799,1763794238176,-500.0,0.00016494,2]
[394621800,1763794238185,-500.0,0.00016494,2]
[394621801,1763794238194,-608.92183813,0.00016494,2]
[394621802,1763794238204,-500.0,0.00016494,2]
[394621803,1763794238214,-500.0,0.00016494,2]
[394621804,1763794238223,-500.0,0.00016494,2]
[394621805,1763794238232,-500.0,0.00016494,2]
[394621806,1763794238242,-200.0,0.00016494,2]
[394621807,1763794238251,-500.0,0.00016494,2]
[394621808,1763794238260,-500.0,0.00016494,2]
[394621809,1763794238269,-500.0,0.00016494,2]
[394621810,1763794238278,-504.15198112,0.00016494,2]
[394621811,1763794238287,-500.0,0.00016494,2]
[394621812,1763794238296,-500.0,0.00016494,2]
[394621813,1763794238305,-500.0,0.00016494,2]
[394621814,1763794238315,-500.0,0.00016494,2]
[394621815,1763794238324,-500.0,0.00016494,2]
[394621816,1763794238333,-500.0,0.00016494,2]
[394621817,1763794238342,-506.3906157,0.00016494,2]
[394621818,1763794238350,-403.40349278,0.00016494,2]
[394621819,1763794238359,-500.0,0.00016494,2]
[394621820,1763794238625,-500.0,0.00016494,2]
[394621821,1763794238634,-500.0,0.00016494,2]
[394621822,1763794238644,-500.0,0.00016494,2]
[394621823,1763794238653,-503.42591601,0.00016494,2]
[394621824,1763794238662,-500.0,0.00016494,2]
[394621825,1763794238672,-500.0,0.00016494,2]
[394621826,1763794238681,-500.0,0.00016494,2]
[394621827,1763794238693,-500.0,0.00016494,2]
[394621828,1763794238702,-500.0,0.00016494,2]
[394621829,1763794238711,-500.0,0.00016494,2]
[394621830,1763794238720,-504.42109088,0.00016494,2]
[394621831,1763794238731,-500.0,0.00016494,2]
[394621832,1763794238740,-500.0,0.00016494,2]
[394621833,1763794238749,-500.0,0.00016494,2]
[394621834,1763794238758,-500.0,0.00016494,2]
[394621835,1763794238769,-500.0,0.00016494,2]
[394621836,1763794238779,-500.0,0.00016494,2]
[394621837,1763794238788,-513.63356014,0.00016494,2]
[394621838,1763794238797,-500.0,0.00016494,2]
[394621839,1763794238806,-658.21,0.00016494,2]
[394621840,1763794238815,-500.0,0.00016494,2]
[394621841,1763794238824,-500.0,0.00016494,2]
[394621842,1763794238834,-500.0,0.00016494,2]
[394621843,1763794238843,-500.0,0.00016494,2]
[394621844,1763794238856,-500.0,0.00016494,2]
[394621845,1763794238865,-500.0,0.00016494,2]
[394621846,1763794238874,-500.0,0.00016494,2]
[394621847,1763794238884,-500.0,0.00016494,2]
[394621848,1763794238893,-500.0,0.00016494,2]
[394621849,1763794238902,-500.0,0.00016494,2]
[394621850,1763794238911,-500.0,0.00016494,2]
[394621851,1763794238921,-404.01780569,0.00016494,2]
[394621852,1763794238933,-500.0,0.00016494,2]
[394621853,1763794238942,-500.0,0.00016494,2]
[394621854,1763794238952,-240.43528054,0.00016494,2]
[394621855,1763794238961,-500.0,0.00016494,2]
[394621856,1763794238971,-500.0,0.00016494,2]
[394621857,1763794238980,-500.0,0.00016494,2]
[394621858,1763794238990,-1568.52,0.00016494,2]
[394621859,1763794238999,-432.50971793,0.00016494,2]
[394621860,1763794239008,-1007.46,0.00016494,2]
[394621861,1763794239018,-197.80203557,0.00016494,2]
[394621862,1763794239028,-500.0,0.00016494,2]
[394621863,1763794239038,-1250.67,0.00016494,2]
[394621864,1763794239048,-500.0,0.00016494,2]
[394621865,1763794239057,-500.0,0.00016494,2]
[394621866,1763794239067,-1048.06,0.00016494,2]
[394621867,1763794239077,-400.0,0.00016494,2]
[394621868,1763794239086,-621.73637836,0.00016494,2]
[394621869,1763794239096,-946.34,0.00016494,2]
[394621870,1763794239106,-642.79474575,0.00016494,2]
[394621871,1763794239115,-500.0,0.00016494,2]
[394621872,1763794239126,-175.47161947,0.00016494,2]
[394621873,1763794239135,-500.0,0.00016494,2]
[394621874,1763794239146,-500.0,0.00016494,2]
[394621875,1763794239155,-500.0,0.00016494,2]
[394621876,1763794239164,-500.0,0.00016494,2]
[394621877,1763794239174,-244.78505043,0.00016494,2]
[394621878,1763794239183,-500.0,0.00016494,2]
[394621879,1763794239192,-500.0,0.00016494,2]
[394621880,1763794239202,-500.0,0.00016494,2]
[394621881,1763794239211,-496.2894915,0.00016494,2]
[394621882,1763794239221,-500.0,0.00016494,2]
[394621883,1763794239230,-500.0,0.00016494,2]
[394621884,1763794239239,-500.0,0.00016494,2]
[394621885,1763794239248,-500.0,0.00016494,2]
[394621886,1763794239258,-711.52,0.00016494,2]
[394621887,1763794239267,-500.0,0.00016494,2]
[394621888,1763794239277,-849.89,0.00016494,2]
[394621889,1763794239286,-500.0,0.00016494,2]
[394621890,1763794239295,-500.0,0.00016494,2]
[394621891,1763794239305,-500.0,0.00016494,2]
[394621892,1763794239314,-500.0,0.00016494,2]
[394621893,1763794239324,-854.66,0.00016494,2]
[394621894,1763794239333,-629.06381527,0.00016494,2]
[394621895,1763794239342,-500.0,0.00016494,2]
[394621896,1763794239351,-405.55429766,0.00016494,2]
[394621897,1763794239361,-152.07281441,0.00016494,2]
[394621898,1763794239370,-500.0,0.00016494,2]
[394621899,1763794239380,-500.0,0.00016494,2]
[394621900,1763794239390,-500.0,0.00016494,2]
[394621901,1763794239399,-500.0,0.00016494,2]
[394621902,1763794239409,-526.17940837,0.00016494,2]
[394621903,1763794239419,-500.0,0.00016494,2]
[394621904,1763794239428,-500.0,0.00016494,2]
[394621905,1763794239437,-624.9928427,0.00016494,2]
[394621906,1763794239447,-500.0,0.00016494,2]
[394621907,1763794239456,-519.08348882,0.00016494,2]
[394621908,1763794239465,-500.0,0.00016494,2]
[394621909,1763794239474,-536.49037388,0.00016494,2]
[394621910,1763794239483,-544.09921482,0.00016494,2]
[394621911,1763794239492,-500.0,0.00016494,2]
[394621912,1763794239501,-500.0,0.00016494,2]
[394621913,1763794239510,-500.0,0.00016494,2]
[394621914,1763794239519,-500.0,0.00016494,2]
[394621915,1763794239528,-516.55398623,0.00016494,2]
[394621916,1763794239537,-510.95915536,0.00016494,2]
[394621917,1763794239546,-500.0,0.00016494,2]
[394621918,1763794239555,-500.0,0.00016494,2]
[394621919,1763794239564,-562.69300443,0.00016494,2]
[394621920,1763794239573,-500.0,0.00016494,2]
[394621921,1763794239583,-566.38987852,0.00016494,2]
[394621922,1763794239592,-504.6296689,0.00016494,2]
[394621923,1763794239601,-500.0,0.00016494,2]
[394621924,1763794239611,-500.0,0.00016494,2]
[394621925,1763794239620,-500.0,0.00016494,2]
[394621926,1763794239631,-602.92,0.00016494,2]
[394621927,1763794239642,-500.0,0.00016494,2]
[394621928,1763794239651,-500.0,0.00016494,2]
[394621929,1763794239660,-500.0,0.00016494,2]
[394621930,1763794239671,-500.0,0.00016494,2]
[394621931,1763794239681,-500.0,0.00016494,2]
[394621932,1763794239694,-1014.16,0.00016494,2]
[394621933,1763794239705,-500.0,0.00016494,2]
[394621934,1763794239716,-500.0,0.00016494,2]
[394621935,1763794239727,-506.48391498,0.00016494,2]
[394621936,1763794239738,-500.0,0.00016494,2]
[394621937,1763794239748,-500.0,0.00016494,2]
[394621938,1763794239757,-1143.04,0.00016494,2]
[394621939,1763794239767,-500.0,0.00016494,2]
[394621940,1763794239776,-711.79,0.00016494,2]
[394621941,1763794239786,-500.0,0.00016494,2]
[394621943,1763794239796,-500.0,0.00016494,2]
[394621946,1763794239806,-500.0,0.00016494,2]
[394621949,1763794239816,-607.46129549,0.00016494,2]
[394621950,1763794239825,-500.0,0.00016494,2]
[394621951,1763794239834,-500.0,0.00016494,2]
[394621953,1763794239843,-500.0,0.00016494,2]
[394621954,1763794239852,-500.0,0.00016494,2]
[394621955,1763794239862,-500.0,0.00016494,2]
[394621956,1763794239871,-500.0,0.00016494,2]
[394621957,1763794239882,-500.0,0.00016494,2]
[394621958,1763794239892,-500.0,0.00016494,2]
[394621959,1763794239902,-500.0,0.00016494,2]
[394621960,1763794239911,-500.0,0.00016494,2]
[394621961,1763794239921,-1151.58,0.00016494,2]
[394621962,1763794239930,-500.0,0.00016494,2]
[394621963,1763794239940,-500.0,0.00016494,2]
[394621964,1763794239950,-500.0,0.00016494,2]
[394621965,1763794239960,-931.47,0.00016494,2]